fUST/lending_fUST_20250423
["ID","MTS","AMOUNT","RATE_DAILY","PERIOD"]
[358726489,1745403083774,-651.56,0.00026062,2]
[358726490,1745403083783,-566.38,0.00026062,2]
[358726491,1745403083793,-683.18,0.00026062,2]
[358726492,1745403083802,-1000.0,0.00026152,2]
[358726493,1745403083811,-1000.0,0.00026152,2]
[358726494,1745403083821,-1000.0,0.00026152,2]
[358726495,1745403083832,-946.14281359,0.00026152,2]
[358726496,1745403083842,-1000.0,0.00026152,2]
[358726497,1745403083854,-501.75562334,0.00026152,2]
[358726498,1745403083865,-1000.0,0.00026152,2]
[358726499,1745403083875,-1000.0,0.00026152,2]
[358726500,1745403083884,-1000.0,0.00026152,2]
[358726501,1745403083894,-509.93571694,0.00026229,2]
[358726502,1745403083904,-835.53657835,0.00026229,2]
[358726503,1745403083913,-2593.34976485,0.00026229,2]
[358726504,1745403083923,-8207.49551365,0.00026229,2]
[358726505,1745403083933,-10366.66891783,0.00026229,2]
[358726506,1745403083943,-4234.09304475,0.00026229,2]
[358726507,1745403083954,-751.15908463,0.00026229,2]
[358726508,1745403083964,-745.48904651,0.00026229,2]
[358726509,1745403083974,-565.12214973,0.00026232,2]
[358726510,1745403083983,-1088.12005265,0.00026232,2]
[358726511,1745403083994,-1553.97284232,0.00026232,2]
[358726512,1745403084004,-612.23778822,0.00026232,2]
[358726513,1745403084014,-562.75985645,0.00026232,2]
[358726514,1745403084023,-1393.77897188,0.00026232,2]
[358726515,1745403084032,-783.9488102,0.00026232,2]
[358726516,1745403084045,-598.13153714,0.00026232,2]
[358726517,1745403084056,-822.23095444,0.00026232,2]
[358726518,1745403084066,-537.37332409,0.00026232,2]
[358726519,1745403084076,-524.38250084,0.00026232,2]
[358726520,1745403084086,-183.76896221,0.00026232,2]
[358726521,1745403084096,-3841.6716283,0.00026232,2]
[358726522,1745403084107,-416.14692393,0.00026232,2]
[358726523,1745403084117,-618.16827567,0.00026232,2]
[358726524,1745403084127,-656.45945613,0.00026233,2]
[358726525,1745403084137,-734.2473934,0.00026233,2]
[358726526,1745403084148,-682.76665612,0.00026233,2]
[358726527,1745403084159,-727.61169848,0.00026233,2]
[358726528,1745403084168,-686.72547479,0.00026233,2]
[358726529,1745403084178,-759.50183066,0.00026233,2]
[358726530,1745403084187,-797.63885988,0.00026233,2]
[358726531,1745403084197,-593.69593203,0.00026233,2]
[358726532,1745403084207,-624.7719995,0.00026233,2]
[358726533,1745403084217,-3144.30424977,0.00026233,2]
[358726534,1745403084227,-2273.13509356,0.00026233,2]
[358726535,1745403084238,-613.55099316,0.00026233,2]
[358726536,1745403084248,-874.66774343,0.00026233,2]
[358726537,1745403084259,-656.68964276,0.00026233,2]
[358726538,1745403084269,-526.8348428,0.00026233,2]
[358726539,1745403084280,-1958.57049231,0.00026233,2]
[358726540,1745403084290,-628.60355922,0.00026233,2]
[358726541,1745403084300,-626.9654887,0.00026233,2]
[358726542,1745403084316,-919.02823179,0.00026235,2]
[358726543,1745403084325,-500.0,0.00026273,2]
[358726544,1745403084337,-4725.58126542,0.00026301,2]
[358726545,1745403084356,-860.08543018,0.00026301,2]
[358726546,1745403084371,-500.0,0.00019926,2]
[358726547,1745403084382,-2810.8833044,0.00026301,2]
[358726548,1745403084392,-517.9436773,0.00026333,2]
[358726549,1745403084402,-2458.89165698,0.00026333,2]
[358726550,1745403084411,-4774.72,0.00026333,2]
[358726551,1745403084422,-5737.34,0.00026333,2]
[358726552,1745403084432,-651.69173183,0.00026336,2]
[358726553,1745403084442,-566.56163376,0.00026336,2]
[358726554,1745403084452,-683.37549325,0.00026336,2]
[358726555,1745403084461,-1000.0,0.00026452,2]
[358726556,1745403084470,-1000.0,0.00026452,2]
[358726557,1745403084480,-1000.0,0.00026452,2]
[358726558,1745403084492,-1000.0,0.00026452,2]
[358726559,1745403084502,-1000.0,0.00026452,2]
[358726560,1745403084511,-1000.0,0.00026452,2]
[358726561,1745403084521,-1000.0,0.00026452,2]
[358726562,1745403084531,-1000.0,0.00026452,2]
[358726563,1745403084542,-1000.0,0.00026452,2]
[358726564,1745403084552,-852.98532867,0.00026452,2]
[358726565,1745403084692,-500.0,0.00019927,2]
[358726566,1745403084702,-500.0,0.00019931,2]
[358726567,1745403084712,-500.0,0.000202,2]
[358726568,1745403084725,-500.0,0.00020201,2]
[358726569,1745403084735,-500.0,0.00020474,2]
[358726570,1745403084747,-500.0,0.00020475,2]
[358726571,1745403084757,-151.0,0.00020647,2]
[358726572,1745403084767,-151.0,0.00020999,2]
[358726573,1745403084778,-152.256774,0.00021301,2]
[358726574,1745403084787,-231.50821405,0.00024657,3]
[358726575,1745403084800,-12268.49178595,0.00024657,3]
[358726576,1745403084811,-147.01467133,0.00026452,2]
[358726577,1745403084820,-1000.0,0.00026452,2]
[358726578,1745403084830,-3500.0,0.00026471,2]
[358726579,1745403084839,-2000.0,0.00026517,4]
[358726580,1745403084849,-281.14371262,0.00026547,2]
[358726581,1745403084859,-8396.55,0.00026575,2]
[358726582,1745403084869,-34662.24883073,0.000266,10]
[358726583,1745403084879,-1000.0,0.00026669,2]
[358726584,1745403084889,-250.0,0.00026674,2]
[358726585,1745403084898,-8316.09559496,0.00026693,6]
[358726586,1745403084908,-2246.0,0.00026766,2]
[358726587,1745403084918,-403.0,0.00026776,2]
[358726588,1745403084928,-403.0,0.00026776,2]
[358726589,1745403084938,-12081.43497868,0.000268,4]
[358726590,1745403085087,-392.76447445,0.00019926,2]
[358726592,1745403086740,-300.0,0.00019925,2]
[358726593,1745403086762,-92.76447445,0.00019926,2]
[358726594,1745403093183,-14.4710511,0.00019926,2]
[358726595,1745403093206,-185.5289489,0.00019926,2]
[358726597,1745403105546,-300.0,0.0001983,2]
[358726602,1745403123750,-168.1122313,0.0001983,2]
[358726609,1745403139307,-152.0,0.00019826,2]
[358726613,1745403158035,-152.0,0.0001973,2]
[358726615,1745403182580,-250.0,0.00019826,2]
[358726617,1745403189567,-153.05344201,0.00019826,2]
[358726618,1745403195121,-166.5654824,0.00019826,2]
[358726620,1745403206976,-152.0,0.00019826,2]
[358726621,1745403213782,-158.682982,0.0001973,2]
[358726622,1745403223712,-9.07211415,0.0001973,2]
[358726623,1745403223735,-190.92788585,0.0001973,2]
[358726625,1745403240286,-210.06802862,0.0001973,2]
[358726628,1745403251730,-486.2683292,0.0001973,2]
[358726629,1745403264508,-57.27575633,0.0001973,2]
[358726630,1745403264531,-126.38107559,0.00019826,2]
[358726631,1745403264554,-76.16199983,0.0001992,2]
[358726632,1745403270480,-240.18116825,0.0001992,2]
[358726633,1745403298746,-152.68707532,0.0001973,2]
[358726634,1745403301936,-13.87840708,0.0001973,2]
[358726635,1745403301965,-138.12159292,0.0001973,2]
[358726641,1745403315476,-213.87840708,0.0001973,2]
[358726642,1745403315499,-58.75717975,0.0001992,2]
[358726644,1745403321067,-216.11316556,0.0001992,2]
[358726645,1745403328915,-170.22687027,0.0001992,2]
[358726646,1745403337545,-152.212,0.0001992,2]
[358726647,1745403343329,-484.99713165,0.0001992,2]
[358726648,1745403350081,-161.72406918,0.0001992,2]
[358726649,1745403354161,-161.72406918,0.0001992,2]
[358726650,1745403365082,-204.26631501,0.0001992,2]
[358726651,1745403369651,-344.46463436,0.0001992,2]
[358726652,1745403373278,-300.0,0.0001992,2]
[358726653,1745403378925,-155.53536564,0.00019824,2]
[358726654,1745403396246,-14.69150463,0.00019824,2]
[358726655,1745403396277,-137.5804531,0.0001992,2]
[358726656,1745403416716,-220.07641515,0.00019824,2]
[358726657,1745403421840,-286.39709466,0.00019824,2]
[358726659,1745403441121,-213.60290534,0.00019824,2]
[358726660,1745403482502,-435.2411199,0.00019824,2]
[358726667,1745403513904,-78.0671882,0.00019824,2]
[358726668,1745403513927,-100.23458729,0.0001992,2]
[358726669,1745403541901,-199.71021879,0.0001992,2]
[358726670,1745403550475,-199.71021879,0.00019826,2]
[358726671,1745403554200,-181.98918486,0.00019826,2]
[358726672,1745403568466,-1351.88938153,0.00019826,2]
[358726673,1745403568486,-2665.11061847,0.0001992,2]
[358726674,1745403569197,-250.0,0.0001992,2]
[358726676,1745403602183,-235.762005,0.0001992,2]
[358726681,1745403614852,-152.0,0.000199,2]
[358726714,1745403636890,-98.0,0.000199,2]
[358726716,1745403636913,-131.461972,0.000199,2]
[358726721,1745403654887,-156.53744209,0.00018925,2]
[358726723,1745403663651,-36.49962831,0.00018925,2]
[358726724,1745403663678,-118.538028,0.000199,2]
[358726725,1745403663701,-94.96234369,0.000199,2]
[358726730,1745403698479,-175.21546717,0.00019,2]
[358726739,1745403722402,-155.8616275,0.00019,2]
[358726744,1745403753391,-157.24190575,0.00019,2]
[358726749,1745403783534,-270.26959047,0.00018999,2]
[358726750,1745403806267,-29.73040953,0.00018999,2]
[358726751,1745403806290,-123.06003458,0.00019,2]
[358726752,1745403809969,-152.0,0.00019,2]
[358726753,1745403844817,-152.0,0.00018999,2]
[358726757,1745403855158,-148.0,0.00018999,2]
[358726758,1745403855181,-52.08688984,0.00019,2]
[358726760,1745403875954,-300.0,0.00019,2]
[358726761,1745403881945,-218.37026628,0.00019,2]
[358726762,1745403889299,-240.992,0.00019,2]
[358726763,1745403894437,-190.35463186,0.00019,2]
[358726764,1745403905487,-165.08807758,0.00018999,2]
[358726775,1745403912843,-300.0,0.00018999,2]
[358726776,1745403923443,-152.50130338,0.00018999,2]
[358726780,1745403942741,-282.41061904,0.00018999,2]
[358726781,1745403942767,-17.58938096,0.00018999,2]
[358726785,1745403958205,-170.34271849,0.00018999,2]
[358726787,1745403962254,-112.06790055,0.00018999,2]
[358726788,1745403962275,-90.35949945,0.00019,2]
[358726790,1745403971452,-160.7133882,0.00019,2]
[358726792,1745403980769,-152.79937046,0.00019,2]
[358726794,1745403992594,-300.0,0.00019,2]
[358726799,1745404023425,-300.0,0.00019,2]
[358726819,1745404082784,-155.41472256,0.00019,2]
[358726824,1745404116286,-224.31668005,0.000189,2]
[358726825,1745404116310,-37.4331328,0.000189,2]
[358726826,1745404141809,-115.25394252,0.000189,2]
[358726827,1745404141832,-52.97648457,0.00019,2]
[358726830,1745404160450,-196.37434373,0.0001991,5]
[358726831,1745404202383,-159.700461,0.00018893,2]
[358726832,1745404202408,-90.299539,0.00019,2]
[358726835,1745404209322,-300.0,0.00018999,2]
[358726836,1745404228225,-230.40778909,0.00018999,2]
[358726865,1745404232860,-289.59221091,0.00018999,2]
[358726866,1745404232870,-8042.25417078,0.00019,2]
[358726867,1745404232879,-300.0,0.00019818,2]
[358726868,1745404232890,-1151.84626966,0.00019819,2]
[358726869,1745404232899,-300.0,0.00019823,2]
[358726870,1745404232909,-1386.87102816,0.00019823,2]
[358726871,1745404232918,-1386.87102812,0.00019894,2]
[358726872,1745404232928,-155.03765631,0.000199,2]
[358726873,1745404232937,-250.0,0.000199,2]
[358726874,1745404232947,-250.0,0.000199,2]
[358726875,1745404232956,-155.47057308,0.0001991,5]
[358726876,1745404232966,-151.0,0.00019912,2]
[358726877,1745404232975,-207.4,0.00019912,2]
[358726878,1745404232985,-151.0,0.00019912,2]
[358726879,1745404232994,-151.0,0.00019912,2]
[358726880,1745404233004,-151.0,0.00019912,2]
[358726881,1745404233013,-151.0,0.00019912,2]
[358726882,1745404233022,-317.61070332,0.00019917,2]
[358726883,1745404233032,-500.0,0.00019917,2]
[358726884,1745404233042,-500.0,0.00019917,2]
[358726885,1745404233052,-500.0,0.00019917,2]
[358726886,1745404233062,-500.0,0.00019917,2]
[358726887,1745404233071,-500.0,0.00019917,2]
[358726888,1745404233080,-160.46490752,0.00019917,2]
[358726889,1745404234009,-390.87887501,0.00019917,2]
[358726891,1745404238382,-109.12112499,0.00019917,2]
[358726892,1745404238391,-500.0,0.00019917,2]
[358726893,1745404238400,-500.0,0.00019917,2]
[358726894,1745404238410,-500.0,0.00019917,2]
[358726895,1745404238421,-500.0,0.00019917,2]
[358726896,1745404238430,-500.0,0.00019917,2]
[358726897,1745404238439,-500.0,0.00019917,2]
[358726898,1745404238449,-500.0,0.00019917,2]
[358726899,1745404238459,-500.0,0.00019917,2]
[358726900,1745404238468,-148.39745349,0.00019917,2]
[358726901,1745404238480,-351.60254651,0.00019917,2]
[358726902,1745404238488,-500.0,0.00019917,2]
[358726903,1745404238499,-500.0,0.00019917,2]
[358726904,1745404238509,-500.0,0.00019917,2]
[358726905,1745404238519,-500.0,0.00019917,2]
[358726906,1745404238528,-500.0,0.00019918,2]
[358726907,1745404238537,-500.0,0.00019918,2]
[358726908,1745404238548,-500.0,0.00019918,2]
[358726909,1745404238557,-500.0,0.00019918,2]
[358726910,1745404238566,-500.0,0.00019918,2]
[358726911,1745404238576,-500.0,0.00019918,2]
[358726912,1745404238586,-500.0,0.00019918,2]
[358726913,1745404238595,-557.87,0.00019918,2]
[358726914,1745404238604,-500.0,0.00019918,2]
[358726915,1745404238613,-500.87,0.00019918,2]
[358726916,1745404238622,-500.0,0.00019918,2]
[358726917,1745404238631,-500.0,0.00019918,2]
[358726918,1745404238640,-500.0,0.00019918,2]
[358726920,1745404238650,-922.11,0.00019918,2]
[358726921,1745404238659,-500.0,0.00019918,2]
[358726922,1745404238667,-1826.39,0.00019918,2]
[358726923,1745404238676,-502.10324631,0.00019918,2]
[358726924,1745404238686,-588.32751561,0.00019918,2]
[358726925,1745404238696,-500.0,0.00019918,2]
[358726926,1745404238705,-500.0,0.00019918,2]
[358726927,1745404238714,-500.0,0.00019918,2]
[358726928,1745404238723,-7833.37,0.00019918,2]
[358726929,1745404238732,-500.0,0.00019918,2]
[358726930,1745404238741,-3314.96,0.00019918,2]
[358726931,1745404238750,-500.0,0.00019918,2]
[358726932,1745404238760,-1346.69,0.00019918,2]
[358726933,1745404238769,-500.0,0.00019918,2]
[358726934,1745404238778,-500.0,0.00019918,2]
[358726935,1745404238788,-500.0,0.00019918,2]
[358726936,1745404238798,-500.0,0.00019918,2]
[358726937,1745404238807,-500.0,0.00019918,2]
[358726938,1745404238816,-500.0,0.00019918,2]
[358726939,1745404238826,-965.63,0.00019918,2]
[358726940,1745404238835,-500.0,0.00019918,2]
[358726941,1745404238844,-500.0,0.00019918,2]
[358726942,1745404238853,-500.0,0.00019918,2]
[358726943,1745404238862,-500.0,0.00019918,2]
[358726944,1745404238872,-500.0,0.00019918,2]
[358726945,1745404238881,-500.0,0.00019918,2]
[358726946,1745404238890,-500.0,0.00019918,2]
[358726947,1745404238899,-538.66,0.00019918,2]
[358726948,1745404238908,-500.0,0.00019918,2]
[358726949,1745404238918,-500.0,0.00019919,2]
[358726950,1745404238928,-500.0,0.00019919,2]
[358726951,1745404238938,-500.0,0.00019919,2]
[358726952,1745404238947,-500.0,0.00019919,2]
[358726953,1745404238957,-500.0,0.00019919,2]
[358726954,1745404238967,-686.58,0.00019919,2]
[358726955,1745404238976,-1103.57,0.00019919,2]
[358726956,1745404238985,-500.0,0.00019919,2]
[358726957,1745404238994,-500.0,0.00019919,2]
[358726958,1745404239003,-500.0,0.00019919,2]
[358726959,1745404239013,-1141.6,0.00019919,2]
[358726960,1745404239022,-500.0,0.00019919,2]
[358726961,1745404239031,-500.0,0.00019919,2]
[358726962,1745404239041,-500.0,0.00019919,2]
[358726963,1745404239051,-500.0,0.00019919,2]
[358726964,1745404239060,-500.0,0.00019919,2]
[358726965,1745404239069,-500.0,0.00019919,2]
[358726966,1745404239079,-500.0,0.00019919,2]
[358726967,1745404239089,-500.0,0.00019919,2]
[358726968,1745404239098,-500.0,0.00019919,2]
[358726969,1745404239107,-500.0,0.00019919,2]
[358726970,1745404239117,-500.0,0.00019919,2]
[358726971,1745404239126,-500.0,0.00019919,2]
[358726972,1745404239135,-527.8,0.00019919,2]
[358726973,1745404239144,-500.0,0.00019919,2]
[358726974,1745404239155,-500.0,0.00019919,2]
[358726975,1745404239164,-500.0,0.00019919,2]
[358726976,1745404239173,-431.75009915,0.00019919,2]
[358726977,1745404239184,-247.1469439,0.00019919,2]
[358726978,1745404239193,-249.62278658,0.00019919,2]
[358726979,1745404239203,-384.91488113,0.00019919,2]
[358726980,1745404239213,-500.0,0.00019919,2]
[358726981,1745404239222,-500.0,0.00019919,2]
[358726983,1745404239232,-500.0,0.00019919,2]
[358726984,1745404239241,-500.0,0.00019919,2]
[358726985,1745404239251,-500.0,0.00019919,2]
[358726986,1745404239260,-500.0,0.00019919,2]
[358726987,1745404239271,-500.0,0.00019919,2]
[358726988,1745404239280,-26040.05048241,0.0001992,2]
[358726989,1745404239290,-500.0,0.0001992,2]
[358726990,1745404239302,-500.0,0.0001992,2]
[358726991,1745404239312,-500.0,0.0001992,2]
[358726992,1745404239321,-630.76252296,0.0001992,2]
[358726993,1745404239331,-500.0,0.0001992,2]
[358726994,1745404239340,-500.0,0.0001992,2]
[358726995,1745404239349,-500.0,0.0001992,2]
[358726996,1745404239359,-500.0,0.0001992,2]
[358726997,1745404239368,-500.0,0.0001992,2]
[358726998,1745404239377,-500.0,0.0001992,2]
[358726999,1745404239387,-500.0,0.0001992,2]
[358727000,1745404239396,-3403.98,0.0001992,2]
[358727001,1745404239406,-500.0,0.0001992,2]
[358727002,1745404239417,-500.0,0.0001992,2]
[358727003,1745404239428,-500.0,0.0001992,2]
[358727004,1745404239437,-885.27,0.0001992,2]
[358727005,1745404239447,-500.0,0.0001992,2]
[358727006,1745404239456,-500.0,0.0001992,2]
[358727007,1745404239467,-500.0,0.0001992,2]
[358727008,1745404239477,-2206.55,0.0001992,2]
[358727009,1745404239486,-998.75,0.0001992,2]
[358727010,1745404239496,-503.0914485,0.00019922,2]
[358727011,1745404239507,-500.0,0.00019922,2]
[358727012,1745404239516,-500.0,0.00019922,2]
[358727013,1745404239526,-500.0,0.00019922,2]
[358727014,1745404239536,-500.0,0.00019922,2]
[358727015,1745404239546,-500.0,0.00019922,2]
[358727016,1745404239556,-500.0,0.00019922,2]
[358727017,1745404239566,-500.0,0.00019922,2]
[358727018,1745404239576,-500.0,0.00019922,2]
[358727019,1745404239586,-500.0,0.00019923,2]
[358727020,1745404239596,-500.0,0.00019923,2]
[358727021,1745404239606,-240.49053203,0.00019923,2]
[358727022,1745404239615,-500.0,0.00019923,2]
[358727023,1745404239625,-500.0,0.00019923,2]
[358727024,1745404239635,-500.0,0.00019923,2]
[358727025,1745404239646,-500.0,0.00019923,2]
[358727026,1745404239656,-610.88164109,0.00019923,2]
[358727027,1745404239665,-500.0,0.00019923,2]
[358727028,1745404239675,-500.0,0.00019923,2]
[358727029,1745404239685,-500.0,0.00019923,2]
[358727030,1745404239694,-500.0,0.00019923,2]
[358727031,1745404239704,-500.0,0.00019923,2]
[358727032,1745404239714,-500.0,0.00019923,2]
[358727033,1745404239724,-500.0,0.00019923,2]
[358727034,1745404239734,-500.0,0.00019923,2]
[358727035,1745404239743,-595.33,0.00019923,2]
[358727036,1745404239754,-500.0,0.00019923,2]
[358727037,1745404239763,-500.0,0.00019923,2]
[358727038,1745404239773,-500.0,0.00019923,2]
[358727039,1745404239782,-500.0,0.00019923,2]
[358727040,1745404239792,-500.0,0.00019923,2]
[358727041,1745404239802,-500.0,0.00019923,2]
[358727042,1745404239811,-581.85728437,0.00019923,2]
[358727043,1745404239820,-500.0,0.00019923,2]
[358727044,1745404239830,-500.0,0.00019923,2]
[358727045,1745404239840,-501.22206358,0.00019923,2]
[358727046,1745404239851,-2261.04,0.00019923,2]
[358727047,1745404239861,-2261.04,0.00019923,2]
[358727048,1745404239871,-2261.04,0.00019923,2]
[358727049,1745404239881,-2261.04,0.00019923,2]
[358727050,1745404239891,-500.0,0.00019923,2]
[358727051,1745404239901,-500.0,0.00019923,2]
[358727052,1745404239913,-500.0,0.00019923,2]
[358727053,1745404239923,-500.0,0.00019923,2]
[358727054,1745404239933,-500.0,0.00019923,2]
[358727055,1745404239942,-500.0,0.00019923,2]
[358727056,1745404239952,-500.0,0.00019923,2]
[358727057,1745404239962,-500.0,0.00019923,2]
[358727059,1745404239973,-500.0,0.00019923,2]
[358727060,1745404239982,-500.0,0.00019923,2]
[358727061,1745404239992,-500.0,0.00019923,2]
[358727062,1745404240002,-500.0,0.00019923,2]
[358727063,1745404240011,-500.0,0.00019923,2]
[358727064,1745404240021,-500.0,0.00019923,2]
[358727065,1745404240031,-500.0,0.00019923,2]
[358727066,1745404240040,-500.0,0.00019923,2]
[358727067,1745404240050,-500.0,0.00019923,2]
[358727068,1745404240059,-500.0,0.00019923,2]
[358727069,1745404240070,-500.0,0.00019923,2]
[358727070,1745404240080,-617.65,0.00019923,2]
[358727071,1745404240090,-500.0,0.00019923,2]
[358727072,1745404240100,-500.0,0.00019923,2]
[358727073,1745404240110,-500.0,0.00019923,2]
[358727074,1745404240120,-500.0,0.00019923,2]
[358727075,1745404240130,-500.0,0.00019923,2]
[358727076,1745404240140,-500.0,0.00019923,2]
[358727077,1745404240149,-500.0,0.00019923,2]
[358727078,1745404240159,-500.0,0.00019923,2]
[358727079,1745404240169,-500.0,0.00019923,2]
[358727080,1745404240179,-500.0,0.00019923,2]
[358727081,1745404240188,-500.0,0.00019923,2]
[358727082,1745404240198,-500.0,0.00019923,2]
[358727083,1745404240208,-500.0,0.00019923,2]
[358727084,1745404240217,-500.0,0.00019923,2]
[358727085,1745404240227,-500.0,0.00019923,2]
[358727086,1745404240237,-500.0,0.00019923,2]
[358727087,1745404240247,-500.0,0.00019923,2]
[358727088,1745404240257,-500.0,0.00019923,2]
[358727089,1745404240267,-500.0,0.00019923,2]
[358727090,1745404240277,-500.0,0.00019923,2]
[358727091,1745404240286,-500.0,0.00019923,2]
[358727092,1745404240297,-500.0,0.00019923,2]
[358727093,1745404240307,-500.0,0.00019923,2]
[358727094,1745404240317,-500.0,0.00019923,2]
[358727095,1745404240327,-500.0,0.00019923,2]
[358727096,1745404240337,-500.0,0.00019923,2]
[358727097,1745404240347,-505.2679877,0.00019923,2]
[358727098,1745404240357,-500.0,0.00019923,2]
[358727099,1745404240367,-500.0,0.00019923,2]
[358727100,1745404240376,-500.0,0.00019923,2]
[358727101,1745404240386,-500.0,0.00019923,2]
[358727102,1745404240396,-500.0,0.00019923,2]
[358727103,1745404240406,-624.52,0.00019923,2]
[358727104,1745404240417,-500.0,0.00019923,2]
[358727105,1745404240428,-500.0,0.00019923,2]
[358727106,1745404240438,-593.44,0.00019923,2]
[358727107,1745404240448,-500.0,0.00019923,2]
[358727108,1745404240458,-500.0,0.00019923,2]
[358727109,1745404240469,-500.0,0.00019923,2]
[358727110,1745404240479,-500.0,0.00019923,2]
[358727111,1745404240490,-500.0,0.00019923,2]
[358727112,1745404240499,-500.0,0.00019923,2]
[358727113,1745404240509,-500.0,0.00019923,2]
[358727114,1745404240519,-500.0,0.00019923,2]
[358727115,1745404240529,-500.0,0.00019923,2]
[358727116,1745404240539,-500.0,0.00019923,2]
[358727117,1745404240551,-500.0,0.00019923,2]
[358727118,1745404240560,-500.0,0.00019923,2]
[358727119,1745404240571,-500.0,0.00019923,2]
[358727120,1745404240581,-1965.45,0.00019923,2]
[358727121,1745404240591,-1965.45,0.00019923,2]
[358727122,1745404240601,-576.56,0.00019923,2]
[358727123,1745404240611,-1965.45,0.00019923,2]
[358727124,1745404240622,-1965.45,0.00019923,2]
[358727125,1745404240632,-500.0,0.00019923,2]
[358727126,1745404240642,-500.0,0.00019923,2]
[358727127,1745404240652,-500.0,0.00019923,2]
[358727128,1745404240662,-500.0,0.00019923,2]
[358727129,1745404240672,-500.0,0.00019923,2]
[358727130,1745404240682,-500.0,0.00019923,2]
[358727131,1745404240693,-500.0,0.00019923,2]
[358727132,1745404240703,-500.0,0.00019923,2]
[358727133,1745404240713,-500.0,0.00019923,2]
[358727134,1745404240723,-500.0,0.00019923,2]
[358727135,1745404240733,-500.0,0.00019923,2]
[358727136,1745404240744,-500.0,0.00019923,2]
[358727138,1745404240753,-500.0,0.00019923,2]
[358727139,1745404240763,-500.0,0.00019923,2]
[358727140,1745404240773,-500.0,0.00019923,2]
[358727141,1745404240784,-500.0,0.00019923,2]
[358727142,1745404240794,-500.0,0.00019923,2]
[358727143,1745404240805,-500.0,0.00019923,2]
[358727144,1745404240814,-500.0,0.00019923,2]
[358727145,1745404240824,-500.0,0.00019923,2]
[358727146,1745404240835,-500.0,0.00019923,2]
[358727147,1745404240845,-500.0,0.00019923,2]
[358727148,1745404240855,-500.0,0.00019923,2]
[358727149,1745404240865,-655.03,0.00019923,2]
[358727150,1745404240874,-639.97600701,0.00019923,2]
[358727151,1745404240884,-500.0,0.00019923,2]
[358727152,1745404240895,-500.0,0.00019923,2]
[358727153,1745404240906,-500.0,0.00019923,2]
[358727154,1745404240917,-500.0,0.00019923,2]
[358727155,1745404240927,-500.0,0.00019923,2]
[358727156,1745404240937,-500.0,0.00019923,2]
[358727157,1745404240946,-500.0,0.00019923,2]
[358727158,1745404240956,-500.0,0.00019923,2]
[358727159,1745404240968,-500.0,0.00019923,2]
[358727160,1745404240978,-500.0,0.00019923,2]
[358727161,1745404240988,-500.0,0.00019923,2]
[358727162,1745404240998,-500.0,0.00019923,2]
[358727163,1745404241008,-500.0,0.00019923,2]
[358727164,1745404241018,-500.0,0.00019923,2]
[358727165,1745404241028,-500.0,0.00019923,2]
[358727166,1745404241038,-500.0,0.00019923,2]
[358727167,1745404241047,-500.0,0.00019923,2]
[358727168,1745404241057,-500.0,0.00019923,2]
[358727169,1745404241068,-500.0,0.00019923,2]
[358727170,1745404241078,-500.0,0.00019923,2]
[358727171,1745404241088,-500.0,0.00019923,2]
[358727172,1745404241098,-500.0,0.00019923,2]
[358727173,1745404241108,-500.0,0.00019923,2]